[Event "26th Triest Festival 2024"]
[Site "Triest"]
[Date "2024.09.04"]
[Round "7.6"]
[White "Lumachi, Gabriele"]
[Black "Chia, Yu Zhe Ashton"]
[Result "1-0"]
[ECO "A10"]
[WhiteElo "2440"]
[BlackElo "2224"]
[Annotator "TA"]
[PlyCount "85"]
[EventDate "2024.09.02"]
[EventType "swiss"]
[EventCountry "ITA"]
[SourceTitle "playchess.com"]
[Source "ChessBase"]
[SourceQuality "1"]
[TimeControl "5400+30"]

{[%evp 11,85,35,36,25,27,20,37,30,55,2,12,12,6,0,25,17,18,13,66,76,70,0,7,0,2,8,65,0,0,3,1,7,2,0,31,39,27,23,103,0,0,0,31,20,31,26,31,31,27,2,6,0,34,15,105,93,103,110,107,102,193,193,197,191,203,187,225,217,327,294,809,816,786,808,734,722]} 1. c4 {[%emt 0:00:02]} f5 {[%emt 0:05:33]} 2. g3 {[%emt 0:00:09]} Nf6 {[%emt 0:00:48]} 3. Bg2 {[%emt 0:00:05]} e6 {[%emt 0:01:15]} 4. Nf3 {[%emt 0:00:33]} d5 {[%emt 0:00:35]} 5. O-O {[%emt 0:00:08]} Be7 {[%emt 0:00:43]} 6. d3 {[%emt 0:00:43]} O-O {[%emt 0:02:58]} 7. b3 {[%emt 0:00:46]} c5 {[%emt 0:02:39]} 8. Bb2 {[%emt 0:00:31]} Nc6 {[%emt 0:00:12]} 9. cxd5 {[%emt 0:00:58] White is slightly better.} exd5 {[%emt 0:00:56]} 10. Nbd2 {[%emt 0:00:14]} (10. e3 $14) 10... Qe8 {[%emt 0:03:18]} 11. e3 {[%emt 0:03:20]} b6 {[%emt 0:06:48]} 12. a3 {[%emt 0:05:25]} Ba6 {[%emt 0:03:38]} 13. Qc2 {[%emt 0:00:08]} (13. Nb1 {simplifies} Bb7 14. Nc3 d4 15. exd4 Nxd4 16. Nxd4 Bxg2 17. Kxg2 cxd4 18. Ne2) 13... Rc8 {[%emt 0:01:01]} 14. Rfe1 {[%emt 0:00:02]} Qg6 {[%emt 0:02:54]} (14... Qd7 $11) 15. Nh4 {[%emt 0:00:28]} Qh5 {[%emt 0:02:12]} 16. Bf3 {[%emt 0:03:38]} (16. Rac1 $14) 16... Ng4 $1 $11 {[%emt 0:03:32]} 17. Bxd5+ {[%emt 0:33:09]} Kh8 {[%emt 0:00:29] [#] White must now prevent ...f4.} 18. Ndf3 {[%emt 0:02:07]} Bf6 {[%emt 0:08:25]} (18... f4 $1 $11 19. Be4 Bxh4 20. Nxh4 fxg3 21. fxg3 Qg5) 19. h3 {[%emt 0:01:25]} (19. Bxf6 $14 Nxf6 20. Bxc6 Rxc6 21. Ne5) 19... Nge5 {[%emt 0:04:27]} 20. Nxe5 {[%emt 0:15:38]} Nxe5 {[%emt 0:02:28]} 21. Bxe5 {[%emt 0:00:31]} (21. Red1 {is more complex.} Rfd8 22. Be6 Rc6 23. Bxe5 Bxe5 24. d4) 21... Bxe5 {[%emt 0:00:02]} 22. Qd1 {[%emt 0:00:17]} Qxd1 {[%emt 0:14:25]} 23. Raxd1 {[%emt 0:00:07]} Bc3 {[%emt 0:00:30]} 24. Re2 Be5 {[%emt 0:32:42]} (24... Rcd8 $11 25. e4 g6) 25. Ree1 {[%emt 0:01:00]} (25. f4 $16 Bb8 26. a4 (26. Be6 Rce8 $14)) 25... Bc3 {[%emt 0:00:00]} 26. Re2 {[%emt 0:03:54]} Rcd8 {[%emt 0:00:00]} 27. e4 {[%emt 0:01:21]} fxe4 {[%emt 0:00:00]} 28. Bxe4 {[%emt 0:00:21]} g6 {[%emt 0:00:00]} 29. f4 {[%emt 0:04:59]} Rd6 {[%emt 0:00:00]} 30. Kg2 {[%emt 0:00:53]} Rfd8 {[%emt 0:00:00]} 31. Nf3 {[%emt 0:01:36]} Kg7 {[%emt 0:00:00][%cal Ra6d3]} 32. h4 {[%emt 0:02:49]} Bc8 {[%emt 0:00:00] A strong pair of Bishops.} (32... Bxd3 $11 {keeps the balance.} 33. Bxd3 Rxd3 34. Re7+ Kg8 35. Rxd3 Rxd3) 33. Rc2 {[%emt 0:00:57]} Bf6 {[%emt 0:00:00]} 34. b4 {[%emt 0:00:18]} cxb4 {[%emt 0:00:00]} 35. axb4 {[%emt 0:01:12]} a5 {[%emt 0:00:00]} (35... Bg4 $16 {was necessary.}) 36. bxa5 {[%emt 0:03:26]} bxa5 {[%emt 0:00:00]} 37. Rc7+ {[%emt 0:00:20]} R6d7 {[%emt 0:00:00]} 38. Rdc1 {[%emt 0:00:59]} Ba6 {[%emt 0:07:00] [#]} 39. Ne5 $1 {[%emt 0:06:23]} Bxe5 {[%emt 0:01:03]} (39... Rxc7 $142 40. Rxc7+ Kg8) 40. fxe5 $18 {[%emt 0:00:05][%cal Bf4e5,Be5e6,Be6e7][%mdl 32] Hoping for e6.} a4 $2 {[%emt 0:01:26]} (40... Kf8 41. Kf2 Rxc7 42. Rxc7 Bxd3) 41. e6 {[%emt 0:00:56] White is clearly winning.} Rxc7 {[%emt 0:00:04]} 42. Rxc7+ {[%emt 0:00:04]} Kf6 {[%emt 0:00:08]} 43. e7 {[%emt 0:10:03] Weighted Error Value: White=0.16 (very precise) /Black=0.30.  Mistake:       	White=4     	Black=7      Inaccurate:     	---       	Black=3      OK:         	White=10    	Black=7      Best:        	White=3     	Black=3      Strong:       	White=1     	Black=1} ({Stronger than} 43. Rxh7 Bxd3 44. Bxd3 Rxd3 $14) 1-0

[Event "26th Triest Festival 2024"]
[Site "Triest"]
[Date "2024.09.04"]
[Round "7.7"]
[White "Marn, Jan"]
[Black "Lohia, Sohum"]
[Result "1/2-1/2"]
[ECO "D02"]
[WhiteElo "2344"]
[BlackElo "2402"]
[Annotator "TA"]
[PlyCount "129"]
[EventDate "2024.09.02"]
[EventType "swiss"]
[EventCountry "ITA"]
[SourceTitle "playchess.com"]
[Source "ChessBase"]
[SourceQuality "1"]
[TimeControl "5400+30"]

{[%evp 28,129,0,0,0,3,56,45,45,50,52,49,48,37,39,42,39,8,14,15,15,13,29,20,20,16,22,18,22,26,38,45,48,19,44,44,45,28,42,47,42,42,45,26,27,29,28,23,22,25,33,17,17,17,117,17,17,0,0,0,5,0,0,0,0,0,0,0,0,0,0,0,0,0,0,0,0,0,8,8,8,0,8,0,0,0,12,0,0,0,8,0,0,0,0,0,8,0,0,0,8,0,0,0]} 1. d4 {[%emt 0:03:40]} Nf6 {[%emt 1:31:00]} 2. Nf3 {[%emt 0:00:12]} d5 {[%emt 0:00:08]} 3. Bf4 {[%emt 0:00:31]} e6 {[%emt 0:00:08]} 4. e3 {[%emt 0:00:04]} Bd6 {[%emt 0:00:07]} 5. Nbd2 {[%emt 0:00:17]} O-O {[%emt 0:00:23]} 6. Bd3 {[%emt 0:01:04] D02: 1 d4 d5 2 Nf3 sidelines, including 2...Nf6 3 g3 and 2...Nf6 3 Bf4.} c5 {[%emt 0:00:16]} 7. c3 {[%emt 0:00:07]} Bxf4 {[%emt 0:00:43]} 8. exf4 {[%emt 0:00:12]} cxd4 {[%emt 0:00:15]} 9. Nxd4 {[%emt 1:28:53]} Qc7 {[%emt 0:00:43]} 10. g3 {[%emt 0:00:10]} e5 {[%emt 0:00:38]} 11. fxe5 {[%emt 0:01:01]} Qxe5+ {[%emt 0:00:15]} 12. Qe2 {[%emt 0:00:54]} Qc7 {[%emt 0:05:02]} 13. O-O {[%emt 1:28:37]} Re8 {[%emt 0:01:18]} 14. Qd1 {[%emt 0:03:37]} Nc6 {[%emt 0:10:17]} 15. N2f3 {[%emt 0:02:13]} Bg4 {[%emt 0:06:57]} 16. Qc2 {[%emt 0:10:33]} Ne5 $146 {[%emt 0:09:32]} (16... Rad8 $11) ({Predecessor:} 16... g6 17. Rfe1 Rad8 18. Bf1 Qc8 19. Bg2 Ne4 20. Re3 Na5 21. b3 Nc6 22. Rae1 Bxf3 23. Nxf3 {1-0 Vitier Vazquez,C (2419)-Fernandez Mayola,R (2332) La Habana Isla 2022 (4)}) 17. Nxe5 $14 {[%emt 0:01:41]} Rxe5 {[%emt 0:01:32]} 18. f3 {[%emt 0:06:35]} Bd7 {[%emt 0:07:00]} 19. Rfe1 {[%emt 0:03:45]} Rae8 {[%emt 0:00:50]} 20. Qd2 {[%emt 0:00:59]} h5 {[%emt 0:03:14]} 21. Rxe5 {[%emt 0:08:33]} (21. Bc2 {simplifies} Qb6 22. Rxe5 Rxe5 23. Bd3) 21... Qxe5 {[%emt 0:02:08]} 22. Kf2 {[%emt 0:03:28]} h4 {[%emt 0:05:40]} 23. Re1 {[%emt 0:01:40]} hxg3+ {[%emt 0:00:56]} (23... Qxe1+ {simplifies} 24. Qxe1 hxg3+ 25. hxg3 Rxe1 26. Kxe1 Kf8) 24. hxg3 {[%emt 0:00:08]} Qh5 {[%emt 0:44:19]} (24... Qxe1+ {simplifies} 25. Qxe1 Rxe1 26. Kxe1 Kf8) 25. Rxe8+ {[%emt 0:00:09]} Nxe8 {[%emt 0:01:22]} 26. Kg1 {[%emt 0:04:18]} Qe5 {[%emt 0:01:57]} 27. Kg2 {[%emt 0:06:07]} Nf6 {[%emt 0:06:46]} 28. Qe2 {[%emt 0:39:42]} Qd6 {[%emt 0:02:21]} 29. Qe3 {[%emt 0:01:19]} Qb6 {[%emt 0:32:40]} 30. Qf2 {[%emt 0:00:07]} Qd6 {[%emt 0:02:00]} 31. Ne2 {[%emt 0:00:58]} b6 {[%emt 0:01:42]} 32. Qd4 {[%emt 0:01:50]} Qe6 {[%emt 0:04:07]} 33. Qf4 {[%emt 0:03:54]} Ne8 {[%emt 0:02:55]} 34. Kf2 {[%emt 0:05:35]} Qf6 {[%emt 0:07:22]} 35. Qxf6 {[%emt 0:07:36]} (35. Ke3 {seems wilder.} Kf8 36. Bc2 Qe7+ 37. Kd2) 35... Nxf6 {[%emt 0:00:06]} 36. Ke3 {[%emt 0:00:05]} Kf8 {[%emt 0:16:30]} 37. Kd4 {[%emt 0:00:04]} Ke7 {[%emt 0:00:08]} 38. Ke5 {[%emt 0:01:44]} Be6 {[%emt 0:02:22]} 39. Bb5 {[%emt 0:00:42]} Ng8 {[%emt 0:05:00]} 40. Nf4 {[%emt 0:12:00]} f6+ {[%emt 0:00:08]} 41. Kd4 {[%emt 0:00:03]} Kd6 $1 {[%emt 0:00:08]} 42. g4 {[%emt 0:00:40]} Bf7 {[%emt 0:00:57]} 43. Ng2 {[%emt 0:02:03]} Ne7 {[%emt 0:00:21]} 44. Ne3 {[%emt 0:00:04]} Be6 {[%emt 0:01:39]} 45. f4 {[%emt 0:01:37]} Bc8 {[%emt 0:03:35]} 46. Be8 {[%emt 0:01:45]} g5 {[%emt 0:03:12]} 47. fxg5 {[%emt 0:03:34]} fxg5 {[%emt 0:00:01]} 48. b4 {[%emt 0:00:34]} Be6 {[%emt 0:00:29]} 49. b5 {[%emt 0:00:21]} Ng8 {[%emt 0:01:52]} 50. Bg6 $1 {[%emt 0:00:43]} Ne7 {[%emt 0:01:03]} 51. Bh7 {[%emt 0:00:32]} Bd7 {[%emt 0:01:40]} 52. a4 {[%emt 0:00:31]} Be8 {[%emt 0:01:02]} 53. Bd3 {[%emt 0:00:44]} Bd7 {[%emt 0:00:10]} 54. Bh7 {[%emt 0:00:21]} Be8 {[%emt 0:00:08]} 55. Bf5 {[%emt 0:00:09]} Bf7 {[%emt 0:00:54]} 56. Bc2 {[%emt 0:01:34]} Be6 {[%emt 0:00:28]} 57. Bh7 {[%emt 0:00:00]} Bf7 {[%emt 0:00:24]} 58. Bf5 {[%emt 0:00:27]} Be8 {[%emt 0:00:28]} 59. Bh7 {[%emt 0:00:29]} Bf7 {[%emt 0:00:28]} 60. Bb1 {[%emt 0:00:24]} Be6 {[%emt 0:00:09]} 61. Ba2 {[%emt 0:00:09]} Bf7 {[%emt 0:00:34]} 62. Bb3 {[%emt 0:01:31]} Be6 {[%emt 0:00:07]} 63. Ba2 {[%emt 0:01:08]} Bf7 {[%emt 0:00:05]} 64. Bb1 {[%emt 0:00:31]} Be6 {[%emt 0:00:10]} 65. Bf5 {[%emt 0:00:30]} 1/2-1/2

[Event "26th Triest Festival 2024"]
[Site "Triest"]
[Date "2024.09.04"]
[Round "7.9"]
[White "Willems, Niels"]
[Black "Schlegel, Igor"]
[Result "1/2-1/2"]
[ECO "D00"]
[WhiteElo "2384"]
[BlackElo "2212"]
[Annotator "TA"]
[PlyCount "173"]
[EventDate "2024.09.02"]
[EventType "swiss"]
[EventCountry "ITA"]
[SourceTitle "playchess.com"]
[Source "ChessBase"]
[SourceQuality "1"]
[TimeControl "5400+30"]

{[%evp 9,173,14,12,-61,-76,-112,-112,-111,-89,-88,-97,-106,-93,-88,-96,-236,-231,-227,-223,-218,-220,-222,-212,-220,-201,-206,-202,-190,-167,-250,-154,-196,-175,-174,-162,-181,-177,-185,-128,-132,-135,-135,-36,-54,0,-134,-133,-120,-125,-130,-134,-136,-94,-94,-58,-86,-87,-122,-114,-226,-129,-208,-198,-291,-237,-251,-246,-223,-225,-244,-241,-374,-365,-406,-412,-418,-404,-475,-292,-270,-276,-264,-281,-362,-259,-266,-172,-159,-123,-114,-120,-115,-110,-112,-57,-26,-26,-174,-39,-54,25,12,66,39,42,41,84,56,53,49,51,48,66,18,136,115,143,149,138,153,137,141,136,95,131,123,170,175,212,177,142,123,133,109,100,9,14,4,0,8,14,0,0,0,20,0,0,0,0,0,0,0,0,0,0,0,0,0,8,8,8,8,8,8,8,8]} 1. d4 {[%emt 0:03:58]} d5 {[%emt 0:00:17]} 2. Nc3 {[%emt 0:00:16]} Bf5 {[%emt 0:01:48]} 3. f3 {[%emt 0:00:16]} Bg6 {[%emt 0:00:24]} 4. e4 {[%emt 0:00:57]} dxe4 {[%emt 0:00:30]} 5. fxe4 {[%emt 0:00:10]} e5 {[%emt 0:00:07]} 6. d5 {[%emt 0:07:44]} ({White should play} 6. Nf3 $11) 6... Bb4 $15 {[%emt 0:03:09]} 7. Bb5+ {[%emt 0:03:15]} c6 {[%emt 0:08:37]} 8. dxc6 {[%emt 0:00:54] Black is better.} Qxd1+ {[%emt 0:29:56]} (8... Nxc6 9. Qxd8+ Rxd8 10. Nf3 $15) 9. Kxd1 {[%emt 0:00:07]} Nxc6 {[%emt 0:00:05]} (9... bxc6 $2 10. Bd3 $19) 10. Nge2 {[%emt 0:17:17]} O-O-O+ {[%emt 0:08:36]} 11. Bd3 {[%emt 0:00:23]} f5 {[%emt 0:05:02]} 12. Ng3 {[%emt 0:25:52]} (12. exf5 $17 Bxf5 13. Rf1) 12... f4 $19 {[%emt 0:19:13]} 13. Nge2 {[%emt 0:00:01]} Nf6 {[%emt 0:00:07]} 14. Bd2 {[%emt 0:00:58]} Ng4 {[%emt 0:00:52]} 15. Ke1 {[%emt 0:04:58] Wards off Nf2} Bc5 {[%emt 0:00:06]} 16. Na4 {[%emt 0:00:27] White is weak on the dark squares} Bf2+ {[%emt 0:00:54]} 17. Kf1 {[%emt 0:00:39]} Be3 {[%emt 0:01:49]} 18. Be1 {[%emt 0:03:06]} Rhf8 {[%emt 0:04:03]} 19. Bh4 {[%emt 0:06:15]} (19. h3 $142 Nf6 20. Nec3) 19... f3 {[%emt 0:01:42]} 20. Nec3 {[%emt 0:11:07]} Rd7 {[%emt 0:06:27] Hoping for ...Bh6.} 21. gxf3 {[%emt 0:04:19]} Nd4 {[%emt 0:01:58]} 22. Kg2 {[%emt 0:02:35]} Nxf3 {[%emt 0:00:19]} (22... Rxf3 23. Raf1 Rxf1 24. Rxf1 $17) 23. Bg3 {[%emt 0:00:04]} Bg5 {[%emt 0:04:16]} (23... Bd4 $19 {aiming for ...Ne3+.} 24. Nd1 h5) 24. Nd1 $17 {[%emt 0:01:10]} Nd2 {[%emt 0:01:03] Dodges Rf1} 25. Nac3 {[%emt 0:03:51]} h5 {[%emt 0:00:52]} (25... Bh5 $17 {...Nf6 would now be deadly.} 26. Re1 Rff7) 26. h3 $15 {[%emt 0:00:33]} h4 {[%emt 0:00:30]} (26... Nh6 $15 27. h4 Bf4) 27. Be1 {[%emt 0:00:36]} (27. Bxh4 $11 Bxh4 28. hxg4) 27... Nf6 {[%emt 0:00:38]} 28. Bxd2 {[%emt 0:01:29]} Bxd2 {[%emt 0:00:01]} 29. Rf1 {[%emt 0:00:14][%cal Oc3d5]} Rh8 $36 {[%emt 0:00:39][%mdl 2048] Black is in control.} 30. Nf2 {[%emt 0:01:12][%cal Oc3d5]} Rh5 {[%emt 0:00:49]} 31. Rg1 {[%emt 0:00:42]} Rf7 {[%emt 0:00:37]} (31... Rg5+ {simplifies} 32. Kh1 Rxg1+ 33. Rxg1 Bh5) 32. Bc4 {[%emt 0:00:24]} Rf8 {[%emt 0:00:15] ...Bxc3 is the strong threat.} 33. Bd3 {[%emt 0:00:36]} Be3 {[%emt 0:00:23]} 34. Ncd1 {[%emt 0:00:31]} (34. Kh1 $17 Be8 35. Ncd1) 34... Bb6 {[%emt 0:00:22]} (34... Rg5+ $19 35. Kf1 Rxg1+ (35... Nxe4 $2 36. Bxe4 Bxe4 37. Nxe3 $18) 36. Kxg1 Bd4 (36... Nxe4 $2 37. Bxe4 Bxe4 38. Nxe3 $18)) 35. Rf1 {[%emt 0:00:29]} (35. Kh2 $17 {is a better defense.} Rh6 36. Bc4) 35... Rg5+ $19 {[%emt 0:00:19]} 36. Kh2 {[%emt 0:00:25]} (36. Ng4 $142) 36... Nh5 {[%emt 0:00:55]} 37. Ng4 {[%emt 0:00:00]} Rxf1 {[%emt 0:00:13]} 38. Bxf1 {[%emt 0:00:01]} Bxe4 {[%emt 0:00:29][%cal Oe4f3]} 39. Nc3 {[%emt 0:00:18]} Bc6 {[%emt 0:01:04] A strong pair of Bishops.} (39... Bxc2 $2 40. Rc1 $18) 40. Bb5 {[%emt 0:00:15]} (40. Bg2 {keeps fighting.}) 40... Bf3 {[%emt 0:00:22]} 41. Be2 {[%emt 0:00:41]} e4 {[%emt 0:00:13]} 42. Bxf3 {[%emt 0:00:38]} exf3 {[%emt 0:00:01]} 43. Ne4 {[%emt 0:00:14]} Bc7+ {[%emt 0:00:51]} 44. Kg1 {[%emt 0:00:25]} Rf5 {[%emt 0:00:15]} (44... Bb6+ 45. Kh2 Rd5 46. b3) 45. Rd1 {[%emt 0:01:05]} Nf4 {[%emt 0:00:12] Prevents Rd3} 46. Ngf2 {[%emt 0:00:34]} Rf8 {[%emt 0:00:55]} 47. Kf1 {[%emt 0:00:57]} Bb6 {[%emt 0:00:34]} 48. c4 {[%emt 0:00:48]} Bxf2 {[%emt 0:01:05]} 49. Nxf2 $17 {[%emt 0:00:01][%mdl 4096] Endgame. KRN-KRN} Re8 {[%emt 0:00:19]} 50. Rd4 {[%emt 0:00:24]} g5 {[%emt 0:00:19]} 51. Ne4 {[%emt 0:01:49] Strongly threatening Nd6+.} Ne2 {[%emt 0:00:53]} (51... Nxh3 52. Nd6+ Kd8 53. Nxe8+ Kxe8 54. b4 $16) (51... Rg8 $1 $17 52. Nxg5 Ne2) 52. Nd6+ $15 {[%emt 0:00:00]} Kb8 {[%emt 0:00:22]} 53. Rg4 {[%emt 0:00:00]} (53. Nxe8 $11 {and White is okay.} Nxd4 54. Kf2) 53... Rf8 {[%emt 0:00:34]} ({Better is} 53... Re6 $19 54. c5 Nf4 55. Rxg5 Nd3 (55... Nxh3 56. Rg8+ Kc7 57. Nb5+ Kd7 58. Rg7+ Re7 59. Rxe7+ Kxe7 60. Nd4 $11) 56. Rg8+ Kc7) 54. Ne4 {[%emt 0:00:00]} Nf4 {[%emt 0:00:38]} (54... Rf5 $15) 55. Nxg5 $11 {[%emt 0:00:06]} Nd3 {[%emt 0:00:02]} (55... Rf5 $11) 56. Rxh4 {[%emt 0:01:13]} Nxb2 {[%emt 0:00:44]} 57. Rd4 {[%emt 0:00:50]} Rf5 {[%emt 0:00:25]} 58. h4 {[%emt 0:00:29]} Kc7 {[%emt 0:00:28] Against Rd8} 59. Kf2 {[%emt 0:00:49]} Kc6 {[%emt 0:00:19]} 60. Nxf3 {[%emt 0:00:24]} Kc5 {[%emt 0:00:35][%cal Of5f3]} 61. Rd7 {[%emt 0:00:37]} (61. Re4 $14 {is superior.}) 61... Nxc4 {[%emt 0:00:18] [#]} (61... Kc6 $1 $11 {keeps the balance.} 62. Rd4 Kc5) 62. Rc7+ $1 $16 {[%emt 0:00:09]} ({Reject} 62. Rxb7 $6 Nd2 $11) 62... Kd5 {[%emt 0:00:17]} 63. Rxb7 {[%emt 0:00:37]} Ke4 {[%emt 0:00:24]} 64. Re7+ {[%emt 0:00:03]} Kf4 {[%emt 0:00:23]} 65. Rd7 {[%emt 0:00:56][%cal Rd7d4] White is more active.} ({Much weaker is} 65. Rxa7 $6 Rb5 $11) 65... Rc5 {[%emt 0:01:07]} 66. Rxa7 {[%emt 0:00:30]} Nd6 {[%emt 0:00:09]} 67. Ne1 {[%emt 0:00:41] Repels Rc2+} Rd5 {[%emt 0:00:35] Wards off Nd3+} (67... Ne4+ $16 68. Ke2 Kg4) 68. Ng2+ $18 {[%emt 0:00:12]} Ke4 {[%emt 0:00:31]} 69. Re7+ {[%emt 0:00:30]} Kd4 {[%emt 0:00:12]} 70. Nf4 {[%emt 0:00:33]} Ra5 {[%emt 0:00:33][%cal Od6f5]} 71. Ne2+ {[%emt 0:00:46]} Kd5 {[%emt 0:00:48][%cal Od6f5] [#]} 72. a4 {[%emt 0:00:29]} Nf5 $1 $11 {[%emt 0:00:20] The position is equal.} 73. Rh7 {[%emt 0:00:30] And now Rh5 would win.} Ke5 $1 {[%emt 0:00:32]} 74. Nc3 {[%emt 0:00:31]} Kd4 {[%emt 0:00:33]} 75. Nb5+ {[%emt 0:00:20]} Ke5 {[%emt 0:00:03]} 76. Nc3 {[%emt 0:00:28]} Kd4 {[%emt 0:00:11]} 77. Nb5+ {[%emt 0:00:43]} Ke5 {[%emt 0:00:05]} 78. Ra7 {[%emt 0:00:27]} Rxa7 {[%emt 0:00:09]} 79. Nxa7 {[%emt 0:00:01] Threatens to win with h5.} Nxh4 {[%emt 0:00:10] KN-KN} 80. Nc8 {[%emt 0:01:04]} Nf5 {[%emt 0:00:31]} 81. a5 {[%emt 0:00:16][%cal Ba4a5,Ba5a6][%mdl 32]} Kd5 {[%emt 0:00:45]} 82. a6 {[%emt 0:00:08] Threatening mate with a7.} Kc6 {[%emt 0:00:03]} 83. Ke2 {[%emt 0:00:29]} (83. a7 $5 Kb7 $8 84. Kf1 $11) 83... Kc7 {[%emt 0:00:27]} 84. a7 {[%emt 0:00:10]} Kb7 {[%emt 0:00:02] [#]} 85. Kd3 $1 {[%emt 0:00:09]} Nd6 {[%emt 0:00:09]} (85... Ne7 86. Nxe7) 86. Nxd6+ {[%emt 0:00:05]} Kxa7 {[%emt 0:00:03]} 87. Ke4 {[%emt 0:02:45] What a fight!   Weighted Error Value: White=0.29 (precise) /Black=0.31.  Mistake:       	White=10    	Black=10     Inaccurate:     	White=6     	Black=7      OK:         	White=26    	Black=29     Best:        	White=13    	Black=13     Strong:       	White=1     	Black=2} 1/2-1/2

[Event "26th Triest Festival 2024"]
[Site "Triest"]
[Date "2024.09.04"]
[Round "7.10"]
[White "Leszko, Bence"]
[Black "Citak, Selim"]
[Result "1/2-1/2"]
[ECO "B22"]
[WhiteElo "2243"]
[BlackElo "2416"]
[Annotator "TA"]
[PlyCount "21"]
[EventDate "2024.09.02"]
[EventType "swiss"]
[EventCountry "ITA"]
[SourceTitle "playchess.com"]
[Source "ChessBase"]
[SourceQuality "1"]
[TimeControl "5400+30"]

{[%evp 9,21,5,5,13,9,-7,21,20,15,-9,33,14,22,21]} 1. e4 {[%emt 0:04:19][%cal Be2e4,Be4e5][%mdl 32]} c5 {[%emt 0:00:17]} 2. Nf3 {[%emt 0:00:05]} e6 {[%emt 0:00:35]} 3. c3 {[%emt 0:00:11][%cal Bc2c3,Bc3c4][%mdl 32]} Nf6 {[%emt 0:01:00]} 4. e5 {[%emt 0:00:05]} Nd5 {[%emt 0:00:06]} 5. a3 {[%emt 0:02:28]} d6 {[%emt 0:01:30]} 6. d4 {[%emt 0:00:05]} cxd4 {[%emt 0:01:53]} 7. c4 {[%emt 0:00:05]} Ne7 {[%emt 0:04:39] [#] And now ...dxe5 would win.} 8. exd6 {[%emt 0:00:22]} Qxd6 {[%emt 0:00:33]} 9. Nc3 {[%emt 0:00:54]} a6 {[%emt 0:04:57] Wards off Nb5} 10. Qxd4 {[%emt 0:00:22]} Qxd4 {[%emt 0:05:01]} 11. Nxd4 {[%emt 0:00:08] Not much happened in this game.   Weighted Error Value: White=0.05 (flawless) /Black=0.18 (very precise) .  Inaccurate:     	---       	Black=2      OK:         	White=3     	Black=1} 1/2-1/2